[Event "Titled Tuesday Blitz February 07 Early 2023"]
[White "Souleidis, Georgios"]
[Black "Tymrakiewicz, Rafal"]
[WhiteFideId "4206827"]
[BlackFideId "1108832"]
[WhiteElo "2419"]
[BlackElo "2144"]
[Result "1/2-1/2"]
[Round "07"]
[TimeControl "180+2"]
[Date "2023.02.07"]
[WhiteClock "0:00:05"]
[BlackClock "0:00:06"]

1. e4 {[%clk 0:03:00]}  c6 {[%clk 0:02:53]} 2. d3 {[%clk 0:03:00]}  g6 {[%clk 0:02:53]} 3. Nf3 {[%clk 0:03:01]}  Bg7 {[%clk 0:02:53]} 4. d4 {[%clk 0:02:59]}  d5 {[%clk 0:02:51]} 5. e5 {[%clk 0:03:00]}  Bg4 {[%clk 0:02:52]} 6. Nbd2 {[%clk 0:02:59]}  e6 {[%clk 0:02:50]} 7. h3 {[%clk 0:02:59]}  Bxf3 {[%clk 0:02:50]} 8. Nxf3 {[%clk 0:03:00]}  c5 {[%clk 0:02:50]} 9. c3 {[%clk 0:02:54]}  Nc6 {[%clk 0:02:48]} 10. Bd3 {[%clk 0:02:50]}  cxd4 {[%clk 0:02:47]} 11. cxd4 {[%clk 0:02:51]}  Qb6 {[%clk 0:02:47]} 12. O-O {[%clk 0:02:51]}  Nge7 {[%clk 0:02:47]} 13. Be3 {[%clk 0:02:49]}  O-O {[%clk 0:02:37]} 14. Qd2 {[%clk 0:02:49]}  Rfc8 {[%clk 0:02:35]} 15. Rac1 {[%clk 0:02:34]}  Nb4 {[%clk 0:02:35]} 16. Bb1 {[%clk 0:02:34]}  Rxc1 {[%clk 0:02:30]} 17. Rxc1 {[%clk 0:02:35]}  Rc8 {[%clk 0:02:28]} 18. Rxc8+ {[%clk 0:02:29]}  Nxc8 {[%clk 0:02:29]} 19. h4 {[%clk 0:02:23]}  Ne7 {[%clk 0:02:23]} 20. h5 {[%clk 0:02:17]}  Nf5 {[%clk 0:02:23]} 21. Bxf5 {[%clk 0:02:02]}  exf5 {[%clk 0:02:23]} 22. a3 {[%clk 0:01:52]}  Nc6 {[%clk 0:02:23]} 23. b4 {[%clk 0:01:51]}  Nd8 {[%clk 0:02:21]} 24. a4 {[%clk 0:01:38]}  Qc6 {[%clk 0:02:21]} 25. b5 {[%clk 0:01:38]}  Qc4 {[%clk 0:02:21]} 26. Qa5 {[%clk 0:01:33]}  Ne6 {[%clk 0:02:01]} 27. Qxa7 {[%clk 0:01:33]}  Qc8 {[%clk 0:02:02]} 28. hxg6 {[%clk 0:01:25]}  hxg6 {[%clk 0:01:59]} 29. a5 {[%clk 0:01:25]}  Nc7 {[%clk 0:01:36]} 30. Qb6 {[%clk 0:01:05]}  Bf8 {[%clk 0:01:25]} 31. e6 {[%clk 0:00:51]}  fxe6 {[%clk 0:01:16]} 32. Ne5 {[%clk 0:00:49]}  Be7 {[%clk 0:01:16]} 33. Nxg6 {[%clk 0:00:47]}  Bd8 {[%clk 0:01:17]} 34. Qc5 {[%clk 0:00:45]}  Qd7 {[%clk 0:01:15]} 35. Qf8+ {[%clk 0:00:30]}  Kh7 {[%clk 0:01:15]} 36. Ne5 {[%clk 0:00:27]}  Qe7 {[%clk 0:01:09]} 37. Qh6+ {[%clk 0:00:25]}  Kg8 {[%clk 0:01:08]} 38. Qg6+ {[%clk 0:00:24]}  Qg7 {[%clk 0:01:03]} 39. Qxg7+ {[%clk 0:00:19]}  Kxg7 {[%clk 0:01:04]} 40. a6 {[%clk 0:00:17]}  Nxb5 {[%clk 0:01:03]} 41. axb7 {[%clk 0:00:17]}  Bc7 {[%clk 0:01:03]} 42. Nd7 {[%clk 0:00:17]}  f4 {[%clk 0:01:00]} 43. Bd2 {[%clk 0:00:17]}  Kg6 {[%clk 0:00:50]} 44. g3 {[%clk 0:00:13]}  fxg3 {[%clk 0:00:48]} 45. fxg3 {[%clk 0:00:14]}  Bxg3 {[%clk 0:00:48]} 46. Kg2 {[%clk 0:00:13]}  Bc7 {[%clk 0:00:44]} 47. Be3 {[%clk 0:00:14]}  Kf5 {[%clk 0:00:41]} 48. Kf3 {[%clk 0:00:14]}  Nd6 {[%clk 0:00:38]} 49. b8=Q {[%clk 0:00:13]}  Bxb8 {[%clk 0:00:38]} 50. Nxb8 {[%clk 0:00:14]}  e5 {[%clk 0:00:29]} 51. Nc6 {[%clk 0:00:12]}  exd4 {[%clk 0:00:23]} 52. Bxd4 {[%clk 0:00:13]}  Nc4 {[%clk 0:00:20]} 53. Nb4 {[%clk 0:00:11]}  Ne5+ {[%clk 0:00:19]} 54. Ke3 {[%clk 0:00:11]}  Ng4+ {[%clk 0:00:18]} 55. Kd3 {[%clk 0:00:11]}  Ne5+ {[%clk 0:00:17]} 56. Kc3 {[%clk 0:00:11]}  Ke4 {[%clk 0:00:18]} 57. Bg1 {[%clk 0:00:06]}  Nf3 {[%clk 0:00:15]} 58. Bf2 {[%clk 0:00:05]}  d4+ {[%clk 0:00:13]} 59. Kc4 {[%clk 0:00:06]}  Nd2+ {[%clk 0:00:08]} 60. Kc5 {[%clk 0:00:06]}  Nf3 {[%clk 0:00:07]} 61. Kc4 {[%clk 0:00:05]}  Nd2+ {[%clk 0:00:06]} 62. Kc5 {[%clk 0:00:06]}  Nf3 {[%clk 0:00:07]} 63. Bxd4 {[%clk 0:00:05]}  Nxd4 {[%clk 0:00:06]} 1/2-1/2


[Site "https://www.chess.com"]

[Event "Titled Tuesday Blitz February 07 Early 2023"]
[White "Parkhov, Yair"]
[Black "Khamdamova, Afruza"]
[WhiteFideId "2813408"]
[BlackFideId "14210444"]
[WhiteElo "2505"]
[BlackElo "2162"]
[Result "0-1"]
[Round "07"]
[TimeControl "180+2"]
[Date "2023.02.07"]
[WhiteClock "0:00:07"]
[BlackClock "0:00:06"]

1. Nf3 {[%clk 0:00:26]}  Nf6 {[%clk 0:02:59]} 2. d4 {[%clk 0:00:25]}  d5 {[%clk 0:02:59]} 3. c4 {[%clk 0:00:24]}  e6 {[%clk 0:02:59]} 4. g3 {[%clk 0:00:23]}  dxc4 {[%clk 0:02:59]} 5. Bg2 {[%clk 0:00:21]}  c5 {[%clk 0:02:59]} 6. O-O {[%clk 0:00:19]}  Nc6 {[%clk 0:03:00]} 7. dxc5 {[%clk 0:00:19]}  Qxd1 {[%clk 0:02:59]} 8. Rxd1 {[%clk 0:00:20]}  Bxc5 {[%clk 0:02:59]} 9. Nbd2 {[%clk 0:00:21]}  c3 {[%clk 0:02:59]} 10. bxc3 {[%clk 0:00:21]}  O-O {[%clk 0:02:59]} 11. Nb3 {[%clk 0:00:21]}  Be7 {[%clk 0:02:59]} 12. Nfd4 {[%clk 0:00:22]}  Bd7 {[%clk 0:02:57]} 13. Bb2 {[%clk 0:00:21]}  Rac8 {[%clk 0:02:54]} 14. c4 {[%clk 0:00:19]}  Rfd8 {[%clk 0:02:52]} 15. Rac1 {[%clk 0:00:13]}  b6 {[%clk 0:02:32]} 16. Nb5 {[%clk 0:00:11]}  Be8 {[%clk 0:02:10]} 17. Rxd8 {[%clk 0:00:10]}  Rxd8 {[%clk 0:02:10]} 18. Bxc6 {[%clk 0:00:09]}  Bxc6 {[%clk 0:02:10]} 19. Nxa7 {[%clk 0:00:09]}  Bb7 {[%clk 0:02:08]} 20. Nb5 {[%clk 0:00:08]}  h6 {[%clk 0:01:59]} 21. f3 {[%clk 0:00:08]}  Ba6 {[%clk 0:01:45]} 22. a4 {[%clk 0:00:07]}  Ne8 {[%clk 0:01:34]} 23. Bd4 {[%clk 0:00:07]}  Rb8 {[%clk 0:01:28]} 24. Kf2 {[%clk 0:00:08]}  Nd6 {[%clk 0:01:27]} 25. Nxd6 {[%clk 0:00:08]}  Bxd6 {[%clk 0:01:27]} 26. Be3 {[%clk 0:00:07]}  Kf8 {[%clk 0:01:17]} 27. Nd4 {[%clk 0:00:06]}  Ba3 {[%clk 0:01:14]} 28. Rc2 {[%clk 0:00:05]}  Bc5 {[%clk 0:01:05]} 29. Nb3 {[%clk 0:00:05]}  Be7 {[%clk 0:01:03]} 30. c5 {[%clk 0:00:06]}  bxc5 {[%clk 0:01:00]} 31. Nxc5 {[%clk 0:00:07]}  Bxc5 {[%clk 0:00:47]} 32. Bxc5+ {[%clk 0:00:08]}  Ke8 {[%clk 0:00:46]} 33. a5 {[%clk 0:00:08]}  Rb5 {[%clk 0:00:46]} 34. Bb6 {[%clk 0:00:09]}  Rd5 {[%clk 0:00:39]} 35. g4 {[%clk 0:00:09]}  f5 {[%clk 0:00:37]} 36. h3 {[%clk 0:00:08]}  f4 {[%clk 0:00:28]} 37. Bc7 {[%clk 0:00:08]}  g5 {[%clk 0:00:28]} 38. h4 {[%clk 0:00:07]}  Kd7 {[%clk 0:00:27]} 39. h5 {[%clk 0:00:06]}  Rd4 {[%clk 0:00:22]} 40. Bb6 {[%clk 0:00:06]}  Rc4 {[%clk 0:00:20]} 41. Rxc4 {[%clk 0:00:04]}  Bxc4 {[%clk 0:00:21]} 42. e3 {[%clk 0:00:05]}  e5 {[%clk 0:00:21]} 43. Bc5 {[%clk 0:00:05]}  Ke6 {[%clk 0:00:20]} 44. Bf8 {[%clk 0:00:05]}  Kf6 {[%clk 0:00:12]} 45. exf4 {[%clk 0:00:05]}  exf4 {[%clk 0:00:12]} 46. Bxh6 {[%clk 0:00:05]}  Ba6 {[%clk 0:00:11]} 47. Bf8 {[%clk 0:00:06]}  Bb7 {[%clk 0:00:11]} 48. Bc5 {[%clk 0:00:06]}  Kf7 {[%clk 0:00:10]} 49. Bb6 {[%clk 0:00:06]}  Kg7 {[%clk 0:00:10]} 50. Bd8 {[%clk 0:00:07]}  Kh6 {[%clk 0:00:10]} 51. Be7 {[%clk 0:00:08]}  Ba6 {[%clk 0:00:09]} 52. Ke1 {[%clk 0:00:07]}  Bb7 {[%clk 0:00:10]} 53. Ke2 {[%clk 0:00:08]}  Ba6+ {[%clk 0:00:10]} 54. Kd2 {[%clk 0:00:08]}  Bb7 {[%clk 0:00:10]} 55. Kc3 {[%clk 0:00:08]}  Bxf3 {[%clk 0:00:09]} 56. a6 {[%clk 0:00:08]}  Bxg4 {[%clk 0:00:09]} 57. a7 {[%clk 0:00:08]}  Bf3 {[%clk 0:00:10]} 58. Kd4 {[%clk 0:00:08]}  Kxh5 {[%clk 0:00:10]} 59. Ke5 {[%clk 0:00:08]}  Ba8 {[%clk 0:00:08]} 60. Bb4 {[%clk 0:00:06]}  f3 {[%clk 0:00:06]} 61. Be1 {[%clk 0:00:05]}  Kg4 {[%clk 0:00:05]} 62. Kd4 {[%clk 0:00:06]}  Kh3 {[%clk 0:00:06]} 63. Ke3 {[%clk 0:00:05]}  Kg2 {[%clk 0:00:06]} 64. Bf2 {[%clk 0:00:03]}  g4 {[%clk 0:00:06]} 65. Bh4 {[%clk 0:00:03]}  g3 {[%clk 0:00:06]} 66. Kf4 {[%clk 0:00:02]}  f2 {[%clk 0:00:07]} 67. Kg4 {[%clk 0:00:01]}  f1=Q {[%clk 0:00:06]} 68. Bxg3 {[%clk 0:00:02]}  Qf3+ {[%clk 0:00:06]} 69. Kg5 {[%clk 0:00:03]}  Qxg3+ {[%clk 0:00:07]} 70. Kf6 {[%clk 0:00:04]}  Qd6+ {[%clk 0:00:07]} 71. Kf7 {[%clk 0:00:04]}  Bd5+ {[%clk 0:00:07]} 72. Ke8 {[%clk 0:00:04]}  Bc6+ {[%clk 0:00:07]} 73. Kf7 {[%clk 0:00:04]}  Qd7+ {[%clk 0:00:07]} 74. Kf8 {[%clk 0:00:04]}  Qxa7 {[%clk 0:00:06]} 75. Kg8 {[%clk 0:00:05]}  Bd5+ {[%clk 0:00:06]} 76. Kh8 {[%clk 0:00:06]}  Be4 {[%clk 0:00:06]} 77. Kg8 {[%clk 0:00:06]}  Bg6 {[%clk 0:00:06]} 78. Kh8 {[%clk 0:00:07]}  Qh7# {[%clk 0:00:06]} 0-1


[Site "https://www.chess.com"]

[Event "Titled Tuesday Blitz February 07 Early 2023"]
[White "Toczek, Grzegorz"]
[Black "Martinez Ramirez, Lennis"]
[WhiteFideId "1106457"]
[BlackFideId "3509079"]
[WhiteElo "2260"]
[BlackElo "2426"]
[Result "0-1"]
[Round "07"]
[TimeControl "180+2"]
[Date "2023.02.07"]
[WhiteClock "0:00:23"]
[BlackClock "0:01:23"]

1. e4 {[%clk 0:03:00]}  c5 {[%clk 0:02:59]} 2. Nf3 {[%clk 0:02:59]}  d6 {[%clk 0:03:00]} 3. c3 {[%clk 0:02:59]}  Nf6 {[%clk 0:02:59]} 4. h3 {[%clk 0:02:59]}  Nc6 {[%clk 0:02:59]} 5. Bd3 {[%clk 0:03:00]}  g6 {[%clk 0:02:58]} 6. Bc2 {[%clk 0:02:59]}  Ne5 {[%clk 0:02:57]} 7. d4 {[%clk 0:02:54]}  cxd4 {[%clk 0:02:56]} 8. cxd4 {[%clk 0:02:55]}  Nxf3+ {[%clk 0:02:56]} 9. Qxf3 {[%clk 0:02:55]}  Bg7 {[%clk 0:02:57]} 10. O-O {[%clk 0:02:52]}  O-O {[%clk 0:02:56]} 11. Nc3 {[%clk 0:02:51]}  Be6 {[%clk 0:02:50]} 12. Rd1 {[%clk 0:02:41]}  Rc8 {[%clk 0:02:46]} 13. Be3 {[%clk 0:02:35]}  a6 {[%clk 0:02:45]} 14. Rac1 {[%clk 0:02:24]}  b5 {[%clk 0:02:44]} 15. a3 {[%clk 0:02:20]}  Qa5 {[%clk 0:02:30]} 16. Bd2 {[%clk 0:02:10]}  Qc7 {[%clk 0:02:18]} 17. Bb1 {[%clk 0:02:07]}  Qb8 {[%clk 0:02:16]} 18. Bf4 {[%clk 0:01:59]}  b4 {[%clk 0:02:11]} 19. e5 {[%clk 0:01:39]}  bxc3 {[%clk 0:02:08]} 20. exf6 {[%clk 0:01:38]}  Bxf6 {[%clk 0:02:06]} 21. bxc3 {[%clk 0:01:36]}  Qb3 {[%clk 0:01:58]} 22. Bxd6 {[%clk 0:01:05]}  Bd5 {[%clk 0:01:58]} 23. Qf4 {[%clk 0:01:02]}  Rxc3 {[%clk 0:01:57]} 24. Bb4 {[%clk 0:00:43]}  Rc6 {[%clk 0:01:30]} 25. Be4 {[%clk 0:00:36]}  Rfc8 {[%clk 0:01:24]} 26. Bxd5 {[%clk 0:00:33]}  Qxd5 {[%clk 0:01:23]} 27. Rxc6 {[%clk 0:00:28]}  Rxc6 {[%clk 0:01:23]} 28. Qe3 {[%clk 0:00:25]}  a5 {[%clk 0:01:23]} 29. Bc5 {[%clk 0:00:23]}  Rxc5 {[%clk 0:01:23]} 0-1


[Site "https://www.chess.com"]

[Event "Titled Tuesday Blitz February 07 Early 2023"]
[White "Ramirez Allo, Eduardo"]
[Black "Demin, Vladimir"]
[WhiteFideId "2224178"]
[BlackFideId "4167457"]
[WhiteElo "2274"]
[BlackElo "2430"]
[Result "0-1"]
[Round "07"]
[TimeControl "180+2"]
[Date "2023.02.07"]
[WhiteClock "0:00:02"]
[BlackClock "0:01:06"]

1. Nf3 {[%clk 0:03:00]}  d5 {[%clk 0:02:59]} 2. c4 {[%clk 0:03:00]}  e6 {[%clk 0:02:58]} 3. g3 {[%clk 0:02:59]}  Nf6 {[%clk 0:02:58]} 4. Bg2 {[%clk 0:03:00]}  Be7 {[%clk 0:02:58]} 5. O-O {[%clk 0:03:00]}  O-O {[%clk 0:02:59]} 6. d4 {[%clk 0:03:01]}  dxc4 {[%clk 0:02:59]} 7. Qc2 {[%clk 0:03:01]}  b5 {[%clk 0:02:58]} 8. a4 {[%clk 0:03:01]}  Bb7 {[%clk 0:02:58]} 9. axb5 {[%clk 0:03:01]}  a6 {[%clk 0:02:58]} 10. bxa6 {[%clk 0:03:00]}  Nxa6 {[%clk 0:02:59]} 11. Qxc4 {[%clk 0:02:59]}  Bd5 {[%clk 0:02:59]} 12. Qc3 {[%clk 0:02:55]}  Ne4 {[%clk 0:02:56]} 13. Qe3 {[%clk 0:02:50]}  Nb4 {[%clk 0:02:55]} 14. Rxa8 {[%clk 0:02:49]}  Qxa8 {[%clk 0:02:55]} 15. Bd2 {[%clk 0:02:42]}  Rb8 {[%clk 0:02:47]} 16. Nc3 {[%clk 0:02:38]}  Nc2 {[%clk 0:02:42]} 17. Qd3 {[%clk 0:02:21]}  Nb4 {[%clk 0:02:27]} 18. Qe3 {[%clk 0:02:09]}  Nc2 {[%clk 0:02:26]} 19. Qf4 {[%clk 0:02:05]}  Bd6 {[%clk 0:02:15]} 20. Nxd5 {[%clk 0:01:23]}  Bxf4 {[%clk 0:02:12]} 21. Nxf4 {[%clk 0:01:23]}  Nxd2 {[%clk 0:02:04]} 22. Nxd2 {[%clk 0:01:24]}  Qa5 {[%clk 0:02:04]} 23. Nc4 {[%clk 0:01:22]}  Qb4 {[%clk 0:02:02]} 24. Ne5 {[%clk 0:01:19]}  Nxd4 {[%clk 0:02:01]} 25. e3 {[%clk 0:01:15]}  Nc2 {[%clk 0:01:54]} 26. Nc6 {[%clk 0:01:11]}  Qxb2 {[%clk 0:01:54]} 27. Nxb8 {[%clk 0:01:10]}  Qxb8 {[%clk 0:01:55]} 28. Rc1 {[%clk 0:01:04]}  Qb2 {[%clk 0:01:52]} 29. Nd3 {[%clk 0:01:04]}  Qa2 {[%clk 0:01:49]} 30. Be4 {[%clk 0:00:59]}  g6 {[%clk 0:01:48]} 31. Nf4 {[%clk 0:00:44]}  Na3 {[%clk 0:01:41]} 32. Rxc7 {[%clk 0:00:41]}  Nc4 {[%clk 0:01:40]} 33. h4 {[%clk 0:00:34]}  Nd2 {[%clk 0:01:39]} 34. Bg2 {[%clk 0:00:23]}  Qa1+ {[%clk 0:01:34]} 35. Kh2 {[%clk 0:00:22]}  Qe1 {[%clk 0:01:35]} 36. Nd3 {[%clk 0:00:16]}  Qe2 {[%clk 0:01:35]} 37. Rd7 {[%clk 0:00:17]}  h5 {[%clk 0:01:30]} 38. Bc6 {[%clk 0:00:14]}  Nf1+ {[%clk 0:01:25]} 39. Kg1 {[%clk 0:00:12]}  Nd2 {[%clk 0:01:20]} 40. Bg2 {[%clk 0:00:09]}  Nc4 {[%clk 0:01:13]} 41. Nf4 {[%clk 0:00:08]}  Qe1+ {[%clk 0:01:12]} 42. Kh2 {[%clk 0:00:07]}  Qxf2 {[%clk 0:01:12]} 43. Nh3 {[%clk 0:00:06]}  Qxe3 {[%clk 0:01:10]} 44. Ng5 {[%clk 0:00:07]}  Qe2 {[%clk 0:01:06]} 45. Rxf7 {[%clk 0:00:06]}  Ne3 {[%clk 0:01:06]} 46. Rf2 {[%clk 0:00:02]}  Qxf2 {[%clk 0:01:06]} 0-1


[Site "https://www.chess.com"]

[Event "Titled Tuesday Blitz February 07 Early 2023"]
[White "Karttunen, Mika"]
[Black "Marn, Jan"]
[WhiteFideId "502081"]
[BlackFideId "14619245"]
[WhiteElo "2490"]
[BlackElo "2345"]
[Result "1-0"]
[Round "07"]
[TimeControl "180+2"]
[Date "2023.02.07"]
[WhiteClock "0:00:34"]
[BlackClock "0:00:09"]

1. d4 {[%clk 0:03:00]}  d5 {[%clk 0:02:56]} 2. c4 {[%clk 0:03:00]}  e6 {[%clk 0:02:54]} 3. Nc3 {[%clk 0:02:58]}  Nf6 {[%clk 0:02:52]} 4. Nf3 {[%clk 0:02:57]}  dxc4 {[%clk 0:02:50]} 5. e3 {[%clk 0:02:51]}  c5 {[%clk 0:02:24]} 6. Bxc4 {[%clk 0:02:49]}  a6 {[%clk 0:02:24]} 7. a4 {[%clk 0:02:36]}  Nc6 {[%clk 0:02:22]} 8. O-O {[%clk 0:02:34]}  cxd4 {[%clk 0:02:21]} 9. exd4 {[%clk 0:02:33]}  Be7 {[%clk 0:02:21]} 10. Qd3 {[%clk 0:02:08]}  O-O {[%clk 0:02:13]} 11. Rd1 {[%clk 0:02:07]}  Nb4 {[%clk 0:02:05]} 12. Qe2 {[%clk 0:02:06]}  b6 {[%clk 0:02:02]} 13. Ne5 {[%clk 0:02:04]}  Bb7 {[%clk 0:02:02]} 14. Bf4 {[%clk 0:01:42]}  Nfd5 {[%clk 0:01:33]} 15. Bd2 {[%clk 0:01:35]}  Nc2 {[%clk 0:01:20]} 16. Rac1 {[%clk 0:01:34]}  Nxd4 {[%clk 0:01:20]} 17. Qg4 {[%clk 0:01:31]}  Nf6 {[%clk 0:01:10]} 18. Qh3 {[%clk 0:01:10]}  Qc7 {[%clk 0:01:06]} 19. Bf4 {[%clk 0:01:07]}  Rfd8 {[%clk 0:00:59]} 20. Bd3 {[%clk 0:00:37]}  Nb3 {[%clk 0:00:13]} 21. Nd5 {[%clk 0:00:36]}  Nxd5 {[%clk 0:00:10]} 22. Rxc7 {[%clk 0:00:34]}  Nxc7 {[%clk 0:00:09]} 23. Qxh7+ {[%clk 0:00:34]} 1-0


[Site "https://www.chess.com"]

[Event "Titled Tuesday Blitz February 07 Early 2023"]
[White "Lymar, Vladislav"]
[Black "Turzo, Attila"]
[WhiteFideId "14162180"]
[BlackFideId "704954"]
[WhiteElo "2119"]
[BlackElo "2279"]
[Result "0-1"]
[Round "07"]
[TimeControl "180+2"]
[Date "2023.02.07"]
[WhiteClock "0:00:04"]
[BlackClock "0:00:19"]

1. e4 {[%clk 0:03:00]}  c5 {[%clk 0:02:59]} 2. Nf3 {[%clk 0:03:00]}  d6 {[%clk 0:03:00]} 3. g3 {[%clk 0:03:00]}  Nc6 {[%clk 0:02:58]} 4. Bg2 {[%clk 0:02:59]}  e5 {[%clk 0:02:58]} 5. O-O {[%clk 0:02:59]}  g6 {[%clk 0:02:53]} 6. Nc3 {[%clk 0:02:59]}  Bg7 {[%clk 0:02:54]} 7. d3 {[%clk 0:02:58]}  Nge7 {[%clk 0:02:54]} 8. a4 {[%clk 0:02:55]}  O-O {[%clk 0:02:52]} 9. Nd5 {[%clk 0:02:48]}  Nxd5 {[%clk 0:02:50]} 10. exd5 {[%clk 0:02:49]}  Nb4 {[%clk 0:02:50]} 11. Nd2 {[%clk 0:02:40]}  f5 {[%clk 0:02:48]} 12. a5 {[%clk 0:02:34]}  Bd7 {[%clk 0:02:47]} 13. Nc4 {[%clk 0:02:30]}  Qc7 {[%clk 0:02:42]} 14. c3 {[%clk 0:02:27]}  Na6 {[%clk 0:02:41]} 15. Bg5 {[%clk 0:02:19]}  Rae8 {[%clk 0:02:30]} 16. Qd2 {[%clk 0:02:15]}  Bb5 {[%clk 0:02:27]} 17. Rfe1 {[%clk 0:01:54]}  Bxc4 {[%clk 0:02:22]} 18. dxc4 {[%clk 0:01:55]}  e4 {[%clk 0:02:19]} 19. Bf1 {[%clk 0:01:54]}  Nb8 {[%clk 0:02:12]} 20. Ra2 {[%clk 0:01:50]}  Nd7 {[%clk 0:02:12]} 21. b4 {[%clk 0:01:48]}  Ne5 {[%clk 0:02:05]} 22. Be2 {[%clk 0:01:44]}  Rc8 {[%clk 0:01:46]} 23. b5 {[%clk 0:01:39]}  Qf7 {[%clk 0:01:40]} 24. Bf4 {[%clk 0:01:37]}  Rce8 {[%clk 0:01:37]} 25. Bxe5 {[%clk 0:01:37]}  Rxe5 {[%clk 0:01:29]} 26. Bf1 {[%clk 0:01:35]}  h5 {[%clk 0:01:25]} 27. Bg2 {[%clk 0:01:30]}  Kh7 {[%clk 0:01:24]} 28. f4 {[%clk 0:01:10]}  exf3 {[%clk 0:01:16]} 29. Rxe5 {[%clk 0:01:08]}  dxe5 {[%clk 0:01:00]} 30. Bxf3 {[%clk 0:01:07]}  e4 {[%clk 0:01:01]} 31. Bg2 {[%clk 0:01:07]}  Be5 {[%clk 0:00:59]} 32. Qe3 {[%clk 0:01:02]}  Bd6 {[%clk 0:00:56]} 33. Rf2 {[%clk 0:00:58]}  Qg7 {[%clk 0:00:54]} 34. Qc1 {[%clk 0:00:42]}  Qh6 {[%clk 0:00:54]} 35. Qxh6+ {[%clk 0:00:34]}  Kxh6 {[%clk 0:00:54]} 36. Rc2 {[%clk 0:00:34]}  h4 {[%clk 0:00:51]} 37. Kf2 {[%clk 0:00:30]}  hxg3+ {[%clk 0:00:50]} 38. hxg3 {[%clk 0:00:31]}  Kg5 {[%clk 0:00:49]} 39. Bh3 {[%clk 0:00:24]}  Rh8 {[%clk 0:00:48]} 40. Kg2 {[%clk 0:00:25]}  Kf6 {[%clk 0:00:47]} 41. Re2 {[%clk 0:00:23]}  Ke5 {[%clk 0:00:44]} 42. Re1 {[%clk 0:00:21]}  g5 {[%clk 0:00:42]} 43. Rf1 {[%clk 0:00:15]}  f4 {[%clk 0:00:32]} 44. gxf4+ {[%clk 0:00:13]}  gxf4 {[%clk 0:00:33]} 45. Bg4 {[%clk 0:00:12]}  Rg8 {[%clk 0:00:23]} 46. Kh3 {[%clk 0:00:13]}  f3 {[%clk 0:00:22]} 47. Bxf3 {[%clk 0:00:12]}  exf3 {[%clk 0:00:22]} 48. Rxf3 {[%clk 0:00:13]}  Rg7 {[%clk 0:00:20]} 49. Kh4 {[%clk 0:00:13]}  Ke4 {[%clk 0:00:19]} 50. Rf1 {[%clk 0:00:08]}  Bf4 {[%clk 0:00:20]} 51. Re1+ {[%clk 0:00:06]}  Kf5 {[%clk 0:00:19]} 52. Kh3 {[%clk 0:00:04]}  Rg3+ {[%clk 0:00:19]} 53. Kh4 {[%clk 0:00:04]}  Rg2 {[%clk 0:00:19]} 0-1


[Site "https://www.chess.com"]

[Event "Titled Tuesday Blitz February 07 Early 2023"]
[White "Baches Garcia, Guillermo"]
[Black "Cori T., Deysi"]
[WhiteFideId "2209764"]
[BlackFideId "3801934"]
[WhiteElo "2327"]
[BlackElo "2362"]
[Result "1-0"]
[Round "07"]
[TimeControl "180+2"]
[Date "2023.02.07"]
[WhiteClock "0:01:05"]
[BlackClock "0:02:09"]

1. e4 {[%clk 0:03:00]}  e6 {[%clk 0:02:58]} 2. d4 {[%clk 0:03:00]}  d5 {[%clk 0:02:58]} 3. exd5 {[%clk 0:03:01]}  Qxd5 {[%clk 0:02:57]} 4. Nf3 {[%clk 0:02:58]}  c5 {[%clk 0:02:56]} 5. c4 {[%clk 0:02:55]}  Qe4+ {[%clk 0:02:55]} 6. Be2 {[%clk 0:02:53]}  cxd4 {[%clk 0:02:55]} 7. Qxd4 {[%clk 0:02:48]}  Qxd4 {[%clk 0:02:54]} 8. Nxd4 {[%clk 0:02:48]}  e5 {[%clk 0:02:53]} 9. Nb5 {[%clk 0:02:44]}  Na6 {[%clk 0:02:53]} 10. N1c3 {[%clk 0:02:41]}  Be6 {[%clk 0:02:53]} 11. Be3 {[%clk 0:02:37]}  Ne7 {[%clk 0:02:49]} 12. Nd6+ {[%clk 0:02:24]}  Kd7 {[%clk 0:02:48]} 13. Nxb7 {[%clk 0:02:22]}  Nf5 {[%clk 0:02:43]} 14. O-O-O+ {[%clk 0:02:19]}  Kc7 {[%clk 0:02:43]} 15. Na5 {[%clk 0:02:08]}  Nxe3 {[%clk 0:02:43]} 16. fxe3 {[%clk 0:02:08]}  Bc5 {[%clk 0:02:43]} 17. Nd5+ {[%clk 0:02:02]}  Bxd5 {[%clk 0:02:41]} 18. Rxd5 {[%clk 0:02:02]}  Bxe3+ {[%clk 0:02:41]} 19. Kb1 {[%clk 0:02:02]}  f6 {[%clk 0:02:41]} 20. Rhd1 {[%clk 0:02:00]}  Rad8 {[%clk 0:02:40]} 21. Rxd8 {[%clk 0:01:55]}  Rxd8 {[%clk 0:02:41]} 22. Rxd8 {[%clk 0:01:54]}  Kxd8 {[%clk 0:02:42]} 23. Kc2 {[%clk 0:01:43]}  Kc7 {[%clk 0:02:40]} 24. a3 {[%clk 0:01:35]}  Bb6 {[%clk 0:02:37]} 25. Nb3 {[%clk 0:01:32]}  Nc5 {[%clk 0:02:35]} 26. Nxc5 {[%clk 0:01:32]}  Bxc5 {[%clk 0:02:35]} 27. b4 {[%clk 0:01:32]}  Bg1 {[%clk 0:02:35]} 28. h3 {[%clk 0:01:32]}  f5 {[%clk 0:02:33]} 29. a4 {[%clk 0:01:17]}  e4 {[%clk 0:02:32]} 30. Kc3 {[%clk 0:01:13]}  Kd6 {[%clk 0:02:29]} 31. c5+ {[%clk 0:01:12]}  Ke5 {[%clk 0:02:29]} 32. Kc4 {[%clk 0:01:11]}  f4 {[%clk 0:02:29]} 33. b5 {[%clk 0:01:10]}  g5 {[%clk 0:02:19]} 34. a5 {[%clk 0:01:10]}  Be3 {[%clk 0:02:17]} 35. a6 {[%clk 0:01:08]}  Ke6 {[%clk 0:02:09]} 36. b6 {[%clk 0:01:05]} 1-0


[Site "https://www.chess.com"]

[Event "Titled Tuesday Blitz February 07 Early 2023"]
[White "Tarlabasi, Emirhan"]
[Black "Ilinca Ilinca, Felix Antonio"]
[WhiteFideId "6350275"]
[BlackFideId "54764998"]
[WhiteElo "2300"]
[BlackElo "2266"]
[Result "1-0"]
[Round "07"]
[TimeControl "180+2"]
[Date "2023.02.07"]
[WhiteClock "0:02:15"]
[BlackClock "0:01:39"]

1. d3 {[%clk 0:02:59]}  e5 {[%clk 0:02:58]} 2. e4 {[%clk 0:02:59]}  Nf6 {[%clk 0:02:57]} 3. Bg5 {[%clk 0:02:58]}  h6 {[%clk 0:02:55]} 4. Bxf6 {[%clk 0:02:58]}  Qxf6 {[%clk 0:02:56]} 5. Nc3 {[%clk 0:02:58]}  c6 {[%clk 0:02:56]} 6. Qf3 {[%clk 0:02:57]}  Qxf3 {[%clk 0:02:54]} 7. Nxf3 {[%clk 0:02:58]}  d6 {[%clk 0:02:55]} 8. d4 {[%clk 0:02:54]}  exd4 {[%clk 0:02:54]} 9. Nxd4 {[%clk 0:02:54]}  Be7 {[%clk 0:02:53]} 10. O-O-O {[%clk 0:02:51]}  O-O {[%clk 0:02:52]} 11. Bc4 {[%clk 0:02:48]}  Bf6 {[%clk 0:02:47]} 12. Kb1 {[%clk 0:02:46]}  Re8 {[%clk 0:02:35]} 13. Rhe1 {[%clk 0:02:45]}  b5 {[%clk 0:02:20]} 14. Ncxb5 {[%clk 0:02:33]}  cxb5 {[%clk 0:02:17]} 15. Bd5 {[%clk 0:02:33]}  a6 {[%clk 0:01:42]} 16. Bxa8 {[%clk 0:02:32]}  Bd7 {[%clk 0:01:42]} 17. Nf5 {[%clk 0:02:20]}  Bxf5 {[%clk 0:01:40]} 18. exf5 {[%clk 0:02:21]}  Rd8 {[%clk 0:01:41]} 19. Bb7 {[%clk 0:02:15]}  Be5 {[%clk 0:01:39]} 20. Rxe5 {[%clk 0:02:15]} 1-0


[Site "https://www.chess.com"]